{"text_format":"1","workbook":"xlsx","n_sheets":9,"sheets":["Instructions","Title Page","Statement of the Supervisor","Credit`s Part","Evaluation Points","Research Activities","Grant Activities","Pedagogical Activities","List1"],"not_rendered":{"charts":0,"images":0,"macros":1,"external_links":0,"defined_names":0,"comments":4,"pivot_tables":0},"unopened":[],"bounds":{"document_bytes":16777216,"sheet_cells":100000,"rows_first":2000,"rows_last":500,"rows_between":2000,"halvings":0,"cell_chars":16384,"cell_head_chars":4096},"cells_cut":0,"cells_raw":0,"read":"whole","date_system":"1900"}

{"sheet":"Instructions","index":0,"n_rows":5,"n_cols":1,"rows_kept":5,"cut":false,"hidden":false,"merged":[]}
["Dear colleagues, Ph.D. students."]
["In accordance with the TBU in Zlín Study and Examination Regulations and the relevant FAI Internal Regulations and Norms, it is necessary to perform an annual assessment and control of the fulfillment of the individual study plan of a Ph.D. student at FAI.\nStarting from the 2008/2009 academic year, only the so-called Credit System has been used to quantify the creative, pedagogical and other activities of Ph.D. students. This credit system was updated in the 2017/2018 academic year and the system for evaluating Ph.D. student activities was modified. The evaluation of the Ph.D. student's activity is newly assessed according to the number of credits obtained - (according to the Credit System), as well as the number of evaluation points obtained for individual activities. The new assessment system strictly affects students who have enrolled in the 2017/18 academic years, and later.\nThe evaluation of the subsidiary activities of the student - (the number of points obtained), is used as an auxiliary criterion in checking the fulfillment of the individual study plan and also for calculating the amount of the scholarship in the Full-time Studies programme (or for applications for increasing the scholarship).\nThe following tables are thus, required for all Ph.D. students at FAI. Students who started their studies earlier than in the 2017/2018 academic year do not have to fill in the professional part (Evaluation points) of the credit system, but it is recomended. The number of evaluation points in previous years corresponds to the number of credits earned in previous years. These tables have been completely innovated and modified in line with changes in the Ph.D. student evaluation system. For this reason, despite a multi-level checks, an error may occur. If you find any error or discrepancy, please email me at: chramcov@utb.cz. I will try to remedy this matter as soon as possible."]
["Instructions for submitting:\n1) Proper evaluation of the doctoral student for the given academic year \n - Print out filled tables (if you have some pages zero (blank), you do not need these sheets) \n - Have the relevant persons responsible sign. \n - Put the signed materials in the hanging file. \n - Enter all publication outputs into the OBD system (including link and full text), then print a list of outputs from OBD system for the given academic year. \nEverything should be submitted to the Department of Research and Development Activities to the student affairs officer for doctoral study by the set deadline. Also, send the Excel file electronically to chramcov@utb.cz and vyslouzilova@utb.cz with the Subject of the mail \"Ph.D. student evaluation - Surname - a form of study\".\n\n2) Application for the scholarship update\n - Fill in only tables with completed activities. \n - Attach the Application for the scholarship update. \n - Submit everything to the Department of Research and Development Activities to the student affairs officer for doctoral study."]
["Some tips how to fill in the tables and what to prove."]
["1) Only yellow fields or pick lists are filled in throughout the table. The others are prescribed or are calculated or filled automatically. \n2) Some cells have red corners, which means that when you hover over the cell, you will see help.\n3) On the \"Credit Part\" sheet, complete ALL exams passed (or planned according to an individual study plan) during your studies. Those that you have completed during the evaluated academic year, mark \"tick\" to get credits for them. Do the same for completed scientific and professional activities.\n4) Fill in the Student Opinion. You do not fill in the sheet with the supervisor's opinion, just print it. The supervisor's opinion is filled in by your supervisor when you bring the whole table to him for signature. The opinion of the Doctoral Studies Program Board (DSPB) and the training workplace is supplemented by the DSPB President or the Dean after the DSPB Meeting.\n5) You do not fill in the \"Evaluation Points\" sheet, it is only a summary.\n6) For publishing activities (journals, books, conferences), cite your work according to the model or citation standard. Enter the mental contribution or credit rate according to the help in the cell! Each publication must be accompanied by a xerocopy of the article (first page of a book or proceeding and then all pages of an article).\n7) The research activity of the type \"Patent\" or the \"Applied result\" describe briefly. The final evaluation for the \"Applied Result\" activity will be determined based on the assessment of the Vice-Dean for Research, Development and Doctoral study.\n8) If you are participating in a grant for which you were not the Head Researcher, have the Head Researcher sign in the line next to the Grant information you entered.\n9) In the case of pedagogical activity of the type \"Experiment design, experimental workplace or laboratory, have the course guarantor or head of the department sign.\n10) If you have taught, you will have the reported number of hours confirmed by signature in the corresponding row of the table by the Secretary of the Department/Institute for which you have taught.\n11) Do not be fooled by the wrong totals of the number of lectured lessons. You are credited with a maximum of 10 credits per year.\n12) On the sheet \"Research activities\" it is possible to add rows in individual categories. Use \"CTRL + a\" to add a line. For this combination to work properly you need to be (cell was active) in the last row of the category where you want to add the row. (always unlock the sheet first and enable macros)"]

{"sheet":"Title Page","index":1,"n_rows":38,"n_cols":8,"rows_kept":38,"cut":false,"hidden":false,"merged":[[22,0,22,4],[24,0,24,4],[26,0,26,4],[28,0,28,4],[30,0,30,4],[11,0,11,7],[20,0,20,7],[13,0,13,5],[15,0,15,5],[17,0,17,5],[0,0,0,7],[1,0,1,7],[8,6,8,7],[9,6,9,7],[5,0,5,1],[8,2,8,4],[9,2,9,4],[8,0,8,1],[6,6,6,7],[7,6,7,7],[2,0,2,7],[3,0,3,7],[6,2,7,5],[6,0,7,1],[5,2,5,7],[37,0,37,1],[36,4,36,7],[35,0,35,7],[37,4,37,7],[33,4,33,7],[36,0,36,1]]}
["Assessment of a Doctoral Student"]
["at the Faculty of Applied Informatics"]
["for the Academic Year"]
["2022/2023"]
[]
["Name and Surname:",null,"John Newman"]
["Thesis Topic:",null,null,null,null,null,"Change Topic:"]
[null,null,null,null,null,null,1]
["Supervisor:",null,"prof. Peter Hook",null,null,"Form of Study:",1]
["Consultant:",null,"doc. Michael Prokse",null,null,"Completed Year:",1]
[]
["Credit - based Assessment of Studies"]
[null,null,null,null,null,null,{"$f":"CONCATENATE(\"Acad. year \",A4)","v":"Acad. year 2022/2023"},"For the \nWhole Study"]
["Total Number of Credits  for the Studies Part of Ph.D studies",null,null,null,null,null,{"$f":"'Credit`s Part'!H25","v":0},{"$f":"'Credit`s Part'!I25","v":0}]
[]
["Total Number of Credits for the Scientific and Profesional Part of Ph.D Studies",null,null,null,null,null,{"$f":"'Credit`s Part'!H40","v":0},{"$f":"'Credit`s Part'!I40","v":0}]
[]
["Total Number of Credits",null,null,null,null,null,{"$f":"G14+G16","v":0},{"$f":"H14+H16","v":0}]
[]
[]
["Evaluation of Individual PhD Student Activities (using evaluation points)"]
[null,null,null,null,null,"Previous Years \nof Study",{"$f":"CONCATENATE(\"Acad. year \",A4)","v":"Acad. year 2022/2023"},"For the \nWhole Study"]
["Number of Evaluation Points for the Study Activities (Exams) ",null,null,null,null,{"$f":"H23-G23","v":0},{"$f":"G14","v":0},{"$f":"H14","v":0}]
[]
[{"$f":"\"Number of Evaluation points for the \"&'Evaluation Points'!A6","v":"Number of Evaluation points for the Research Activities"},null,null,null,null,0,{"$f":"'Evaluation Points'!H21","v":0},{"$f":"F25+G25","v":0}]
[]
[{"$f":"\"Number of Evaluation points for the \"&'Evaluation Points'!A23","v":"Number of Evaluation points for the Grant Activities"},null,null,null,null,0,{"$f":"'Evaluation Points'!H32","v":0},{"$f":"F27+G27","v":0}]
[]
[{"$f":"\"Number of Evaluation points for the \"&'Evaluation Points'!A34","v":"Number of Evaluation points for the Pedagogical and Mobility Activities"},null,null,null,null,0,{"$f":"'Evaluation Points'!H42","v":0},{"$f":"F29+G29","v":0}]
[]
["Total Number of Earned Evaluation Points",null,null,null,null,{"$f":"SUM(F23:F29)","v":0},{"$f":"SUM(G23:G29)","v":0},{"$f":"SUM(H23:H29)","v":0}]
[]
[]
[]
["Doctoral Student Opinion to the Course of Study."]
["Student opinion:"]
["……………………………..",null,null,null,"………………………………………."]
["Date",null,null,null,{"$f":"C6","v":"John Newman"}]

{"sheet":"Statement of the Supervisor","index":2,"n_rows":33,"n_cols":7,"rows_kept":33,"cut":false,"hidden":false,"merged":[[20,0,20,1],[20,4,20,7],[15,4,15,7],[23,0,23,7],[24,0,24,1],[24,4,24,7],[18,0,18,7],[19,0,19,1],[19,4,19,7],[32,4,32,7],[26,4,26,7],[25,0,25,1],[25,4,25,7],[29,0,29,7],[30,0,30,1],[30,4,30,7],[31,0,31,1],[31,4,31,7],[6,0,7,1],[8,0,8,1],[8,2,8,4],[8,6,8,7],[14,0,14,1],[14,4,14,7],[6,2,7,7],[12,0,12,7],[13,0,13,1],[13,4,13,7],[9,2,9,4],[9,6,9,7],[0,0,0,7],[1,0,1,7],[2,0,2,7],[3,0,3,7],[5,0,5,1],[5,2,5,7]]}
[{"$f":"'Title Page'!A1:H1","v":"Assessment of a Doctoral Student"}]
[{"$f":"'Title Page'!A2:H2","v":"at the Faculty of Applied Informatics"}]
[{"$f":"'Title Page'!A3:H3","v":"for the Academic Year"}]
[{"$f":"'Title Page'!A4:H4","v":"2022/2023"}]
[]
["Name and Surname:",null,{"$f":"'Title Page'!C6:H6","v":"John Newman"}]
["Thesis Topic:",null,{"$f":"'Title Page'!C7:F8","v":0}]
[]
["Supervisor:",null,{"$f":"'Title Page'!C9:E9","v":"prof. Peter Hook"},null,null,"Form of Study:",1]
["Consultant:",null,{"$f":"'Title Page'!C10:E10","v":"doc. Michael Prokse"},null,null,"Completed Year:",2]
[]
["Supervisor's opinion:"]
[]
["……………………………..",null,null,null,"………………………………………."]
["Date",null,null,null,{"$f":"C9","v":"prof. Peter Hook"}]
[null,null,null,null,"Supervisor"]
[]
["Statement of Student to Supervisor's opinion:"]
[]
["……………………………..",null,null,null,"………………………………………."]
["Date",null,null,null,{"$f":"C6","v":"John Newman"}]
[]
["Statement of Doctoral Studies Program Board (SPB):"]
[]
["……………………………..",null,null,null,"………………………………………."]
["Date",null,null,null,"prof. Ing. Roman Prokop, CSc.\nPředseda OR DSP"]
[null,null,null,null,"SPB Chair´s Signature"]
[]
["Statement of the Head of the Training Center:"]
[]
["……………………………..",null,null,null,"………………………………………."]
["Date",null,null,null,"Assoc. Prof. Ing. Jiří Vojtěšek, Ph.D."]
[null,null,null,null,"Dean of FAI"]

{"sheet":"Credit`s Part","index":3,"n_rows":40,"n_cols":9,"rows_kept":40,"cut":false,"hidden":false,"merged":[[35,0,35,4],[36,0,36,1],[36,2,36,8],[27,0,28,4],[29,0,29,4],[30,0,30,4],[31,0,31,4],[32,0,32,4],[33,0,33,4],[27,5,28,5],[27,6,28,6],[27,7,27,8],[34,0,34,4],[14,0,14,3],[5,2,6,8],[5,0,6,1],[20,0,20,3],[1,0,1,8],[17,0,17,3],[18,0,18,3],[19,0,19,3],[4,0,4,1],[4,2,4,8],[8,2,8,4],[8,6,8,8],[13,0,13,3],[0,0,0,8],[10,0,10,8],[26,0,26,8],[2,0,2,8],[21,2,21,8],[7,0,7,1],[7,2,7,4],[7,6,7,8],[21,0,21,1],[11,7,11,8],[11,0,12,3],[11,4,12,4],[11,5,12,5],[11,6,12,6],[15,0,15,3],[16,0,16,3]]}
["CREDIT`S PART"]
["Overview of Credits after the Academic Year"]
[{"$f":"'Title Page'!A4:H4","v":"2022/2023"}]
[]
["Name and Surname:",null,{"$f":"'Title Page'!C6:H6","v":"John Newman"}]
["Thesis Topic:",null,{"$f":"'Title Page'!C7","v":0}]
[]
["Supervisor:",null,{"$f":"'Title Page'!C9:E9","v":"prof. Peter Hook"},null,null,"Form of Study:",1]
["Consultant:",null,{"$f":"'Title Page'!C10:E10","v":"doc. Michael Prokse"},null,null,"Completed Year:",4]
[]
["Study Part - Exams"]
["Exams",null,null,null,"Scheduled Date","Actual Date of Completion","To Calculate this Year","Earned Credits"]
[null,null,null,null,null,null,null,"this Year","Total"]
[" Mathematics",null,null,null,null,null,false,{"$f":"G14*10","v":0},{"$f":"IF(ISBLANK(F14),H14,10)","v":0}]
[" English",null,null,null,null,null,false,{"$f":"G15*10","v":0},{"$f":"IF(ISBLANK(F15),H15,10)","v":0}]
[null,null,null,null,null,null,false,0,0]
[null,null,null,null,null,null,false,0,0]
[null,null,null,null,null,null,false,0,0]
[null,null,null,null,null,null,false,0,0]
[" Another Exam (Subject of the Course) ",null,null,null,null,null,false,0,0]
[" State Doctoral Exam",null,null,null,null,null,false,{"$f":"G21*30","v":0},{"$f":"IF(ISBLANK(F21),H21,30)","v":0}]
["Title of the Thesis for the State Doctoral Exam:"]
[]
[null,null,null,null,null,null,null,{"$f":"CONCATENATE(\"Acad. year \",A3)","v":"Acad. year 2022/2023"},"The Whole Study"]
["Total Number of Credits  for the Studies Part of Ph.D studies",null,null,null,null,null,null,{"$f":"SUM(H14:H21)","v":0},{"$f":"SUM(I14:I21)","v":0}]
[]
["Scientific and Profesional Part"]
["Activity Title",null,null,null,null,"Date of Recognition \nof Activity","To Calculate this Year","Earned Credits"]
[null,null,null,null,null,null,null,"this Year","Total"]
[" P-Jrec (Peer-reviewed journals, books)",null,null,null,null,null,false,{"$f":"G30*10","v":0},{"$f":"IF(ISBLANK(F30),H30,10)","v":0}]
[" P-Konf (Conference Proceedings indexed in the WoS, SCOPUS) ",null,null,null,null,null,false,0,0]
[" P-Ost (Other Publication and Research Activities)",null,null,null,null,null,false,0,0]
[" G-Akt (Grant Activities and Supplementary Activities at FAI)",null,null,null,null,null,false,0,0]
[" MOBILITY (Mobily and International Activities)",null,null,null,null,null,false,0,0]
[" PEDAGOGICAL (Professional Pedagogical Activities)",null,null,null,null,null,false,0,0]
[" Thesis Defence",null,null,null,null,null,false,{"$f":"G36*30","v":0},{"$f":"IF(ISBLANK(F36),H36,30)","v":0}]
["Title of the Thesis:"]
[]
[null,null,null,null,null,null,null,{"$f":"CONCATENATE(\"Acad. year \",A3)","v":"Acad. year 2022/2023"},"The Whole Study"]
["Total Number of Credits for the Scientific and Profesional Part of Ph.D Studies",null,null,null,null,null,null,{"$f":"SUM(H30:H36)","v":0},{"$f":"SUM(I30:I36)","v":0}]

{"sheet":"Evaluation Points","index":4,"n_rows":45,"n_cols":8,"rows_kept":45,"cut":false,"hidden":false,"merged":[[44,0,44,6],[41,0,41,6],[40,0,40,5],[30,0,30,5],[32,0,32,5],[31,0,31,6],[34,0,34,5],[36,0,36,5],[37,0,37,5],[39,0,39,5],[0,0,0,7],[38,0,38,5],[22,0,22,7],[33,0,33,7],[20,0,20,6],[3,0,3,1],[3,2,3,7],[5,0,5,5],[6,1,6,5],[7,1,7,5],[16,1,16,5],[17,1,17,5],[26,0,26,5],[28,0,28,5],[11,1,11,5],[12,1,12,5],[21,0,21,5],[23,0,23,5],[24,0,24,5],[35,0,35,5],[25,0,25,5],[27,0,27,5],[29,0,29,5],[1,0,1,7],[18,1,18,5],[19,1,19,5],[15,1,15,5],[8,1,8,5],[9,1,9,5],[10,1,10,5],[13,1,13,5],[14,1,14,5]]}
[{"$f":"\"Evaluation of Individual PhD Student Activities in Academic Year  \"&'Title Page'!A4:H4","v":"Evaluation of Individual PhD Student Activities in Academic Year  2022/2023"}]
["(Evaluation Points)"]
[]
["Name and Surname:",null,{"$f":"'Title Page'!C6:H6","v":"John Newman"}]
[]
["Research Activities",null,null,null,null,null,"Evaluation Points Rate","Number of Evaluation Points (EP)"]
["Jimp","Articles in \"impacted\" (peer-reviewed) journals registered in the Web of Science Database",null,null,null,null,"D1-160, Q1-120, Q2-80, Q3-40, Q4-30",{"$f":"'Research Activities'!H8","v":0}]
["Jsc","Articles in peer-reviewed journals registered in the SCOPUS database",null,null,null,null,"D1-120, Q1-90, Q2-60, Q3-30, Q4-20",{"$f":"'Research Activities'!H13","v":0}]
["B1","Professional Book (Chapter in the Book) – in a World-Class Language",null,null,null,null,"15/AA",{"$f":"'Research Activities'!H18","v":0}]
["B2","Professional Book (Chapter in the Book) – in other Languages",null,null,null,null,"8/AA",{"$f":"'Research Activities'!H23","v":0}]
["D","Articles in a Conference Proceedings indexed in the SCOPUS or WoS database",null,null,null,null,10,{"$f":"'Research Activities'!H28","v":0}]
["P1","\"European\" patent  (EPO), USA patent (USPTO) or Japan patent",null,null,null,null,200,{"$f":"'Research Activities'!H33","v":0}]
["P2","Czech or National Patents, which are used on the basis of valid licencing contract agreements",null,null,null,null,100,{"$f":"'Research Activities'!H38","v":0}]
["P3","Other patents",null,null,null,null,25,{"$f":"'Research Activities'!H43","v":0}]
["Aplied Results ","Semioperation, proven technology, prototype, functional sample, software, utility model, industrial design, certified methodology)",null,null,null,null,"2 - 30",{"$f":"'Research Activities'!H48","v":0}]
["Jneimp1","Articles in peer-reviewed journals registered in the list of Czech Periodical Review. ",null,null,null,null,{"$f":"IF('Title Page'!G10=1,8,IF('Title Page'!G10=2,5,2))","v":8},{"$f":"'Research Activities'!H53","v":0}]
["Jneimp2","Articles in a scientific or professional journals not indexed in the SCOPUS or WoS database – world-class language",null,null,null,null,{"$f":"IF('Title Page'!G10=1,8,IF('Title Page'!G10=2,5,2))","v":8},{"$f":"'Research Activities'!H58","v":0}]
["Jneimp3","Articles in a scientific or professional journals not indexed in the SCOPUS or WoS database  – other languages",null,null,null,null,{"$f":"IF('Title Page'!G10=1,3,IF('Title Page'!G10=2,2,0))","v":3},{"$f":"'Research Activities'!H63","v":0}]
["Dnehodn1","Articles in a Conference Proceedings not indexed in the SCOPUS and WoS database - world-class language",null,null,null,null,{"$f":"IF('Title Page'!G10=1,5,IF('Title Page'!G10=2,3,IF('Title Page'!G10=3,2,0)))","v":5},{"$f":"'Research Activities'!H68","v":0}]
["Dnehodn2","Articles in a Conference Proceedings - other languages",null,null,null,null,{"$f":"IF('Title Page'!G10=1,2,IF('Title Page'!G10=2,2,0))","v":2},{"$f":"'Research Activities'!H73","v":0}]
["Number of Evaluation Points for the Research Activities",null,null,null,null,null,null,{"$f":"SUM(H7:H20)","v":0}]
[]
["Grant Activities"]
["Head Researcher or Co-researcher of an internal - FAI (IGA) grant, with a Final Report ",null,null,null,null,null,"(-5) - 10",{"$f":"'Grant Activities'!H6","v":0}]
["Researcher responsible for an international project ",null,null,null,null,null,40,{"$f":"'Grant Activities'!H11","v":0}]
["Active participation in the solution (co-solver) of an international project ",null,null,null,null,null,"5 - 20",{"$f":"'Grant Activities'!H16","v":0}]
["Head researcher (Responsible Project Coordinator) of a GAČR, TAČR or Departmental project  (MPO, MO, MZE, MŠMT)",null,null,null,null,null,30,{"$f":"'Grant Activities'!H21","v":0}]
["Active participation in the solution (co-resolver) of a GAČR, TAČR or Departmental project ",null,null,null,null,null,"5 - 15",{"$f":"'Grant Activities'!H27","v":0}]
["Researcher responsible for a TBU in Zlín development project ",null,null,null,null,null,5,{"$f":"'Grant Activities'!H32","v":0}]
["Active participation in the resolution (co-researcher) of a TBU development project ",null,null,null,null,null,3,{"$f":"'Grant Activities'!H37","v":0}]
["A share in the resolution of complementary activities in connection with their dissertation thesis, with the use of knowledge acquired in their PhD thesis field",null,null,null,null,null,"5 - 15",{"$f":"'Grant Activities'!H42","v":0}]
["Number of Evaluation Points for the Grant Activities",null,null,null,null,null,null,{"$f":"SUM(H24:H31)","v":0}]
[]
["Pedagogical and Mobility Activities"]
["Mobility – Study-stays or work placements at a university abroad whose professional content is on the dissertation topic (with a length of not less than 28 days)",null,null,null,null,null,"10/month",{"$f":"'Pedagogical Activities'!G8","v":0}]
["Mobility – Study-stays or work placements at a university abroad whose professional content is on the dissertation topic (with a length of less than 28 days)",null,null,null,null,null,"1/week",{"$f":"'Pedagogical Activities'!G13","v":0}]
["The design of an experiment, experimental workplace, or laboratory workplace.",null,null,null,null,null,5,{"$f":"'Pedagogical Activities'!G20","v":0}]
["Tutorial Aids (tuition materials, teaching scripts, educational programs, laboratory tasks)",null,null,null,null,null,"2 - 5",{"$f":"'Pedagogical Activities'!G25","v":0}]
["Assuring tuition in the tutorial workplace in the field of the dissertation, within the context of unpaid pedagogical working practice (max. 10 evaluation points/academic year)",null,null,null,null,null,"1 point/1 hour per week and semester (2 points for tuition in english language)",{"$f":"'Pedagogical Activities'!G47","v":0}]
["Submission of their Dissertation, in the Czech (Slovak) language",null,null,null,null,null,30,{"$f":"'Pedagogical Activities'!G51","v":0}]
["Submission of their Dissertation, in the English language",null,null,null,null,null,50,{"$f":"'Pedagogical Activities'!G55","v":0}]
["Number of Evaluation Points for the Pedagogical and Mobility Activities",null,null,null,null,null,null,{"$f":"SUM(H35:H41)","v":0}]
[]
[]
["Total Number of Earned Evaluation Points",null,null,null,null,null,null,{"$f":"H21+H32+H42","v":0}]

{"sheet":"Research Activities","index":5,"n_rows":75,"n_cols":8,"rows_kept":75,"cut":false,"hidden":false,"merged":[[74,0,74,6],[47,0,47,4],[59,1,59,5],[60,0,60,5],[49,1,49,5],[65,0,65,5],[61,0,61,5],[57,0,57,4],[64,1,64,5],[62,0,62,4],[71,0,71,5],[72,0,72,4],[70,0,70,5],[67,0,67,4],[69,1,69,5],[50,0,50,5],[0,0,0,1],[0,2,0,7],[5,0,5,4],[6,0,6,4],[7,0,7,4],[4,1,4,4],[3,0,3,7],[44,1,44,4],[29,1,29,5],[35,0,35,5],[20,0,20,4],[21,0,21,4],[39,1,39,5],[42,0,42,4],[30,0,30,5],[31,0,31,5],[24,1,24,5],[25,0,25,5],[26,0,26,5],[36,0,36,5],[37,0,37,4],[40,0,40,5],[32,0,32,4],[34,1,34,5],[41,0,41,5],[9,1,9,4],[12,0,12,4],[27,0,27,4],[15,0,15,4],[10,0,10,4],[16,0,16,4],[11,0,11,4],[22,0,22,4],[17,0,17,4],[19,1,19,4],[14,1,14,4],[66,0,66,5],[45,0,45,4],[46,0,46,4],[51,0,51,5],[54,1,54,5],[55,0,55,5],[56,0,56,5],[52,0,52,4]]}
["Name and Surname:",null,{"$f":"'Title Page'!C6:H6","v":"John Newman"}]
[]
[]
[{"$f":"'Evaluation Points'!A6","v":"Research Activities"}]
[{"$f":"'Evaluation Points'!A7","v":"Jimp"},{"$f":"'Evaluation Points'!B7&\" (Number of EP: \"&'Evaluation Points'!G7&\")\"","v":"Articles in \"impacted\" (peer-reviewed) journals registered in the Web of Science Database (Number of EP: D1-160, Q1-120, Q2-80, Q3-40, Q4-30)"},null,null,null,"Location of the journal (D1, Q1, Q2, Q3, Q4)","Mental Contribution ( 0 - 1 )","Number of Evaluation Points"]
["Citation",null,null,null,null,null,null,{"$f":"IF(F6=\"D1\",160*G6,IF(F6=\"Q1\",120*G6,IF(F6=\"Q2\",80*G6,IF(F6=\"Q3\",40*G6,30*G6))))","v":0}]
[null,null,null,null,null,null,null,{"$f":"IF(F7=\"D1\",160*G7,IF(F7=\"Q1\",120*G7,IF(F7=\"Q2\",80*G7,IF(F7=\"Q3\",40*G7,30*G7))))","v":0}]
["Total",null,null,null,null,null,null,{"$f":"CEILING(SUM(H6:H7),1)","v":0}]
[]
[{"$f":"'Evaluation Points'!A8","v":"Jsc"},{"$f":"'Evaluation Points'!B8&\" (Number of EP: \"&'Evaluation Points'!G8&\")\"","v":"Articles in peer-reviewed journals registered in the SCOPUS database (Number of EP: D1-120, Q1-90, Q2-60, Q3-30, Q4-20)"},null,null,null,"Location of the journal (D1, Q1, Q2, Q3, Q4)","Mental Contribution\n( 0 - 1 )","Number of Evaluation Points"]
["Citation",null,null,null,null,null,null,{"$f":"IF(F11=\"D1\",120*G11,IF(F11=\"Q1\",90*G11,IF(F11=\"Q2\",60*G11,IF(F11=\"Q3\",30*G11,20*G11))))","v":0}]
[null,null,null,null,null,null,null,{"$f":"IF(F12=\"D1\",120*G12,IF(F12=\"Q1\",90*G12,IF(F12=\"Q2\",60*G12,IF(F12=\"Q3\",30*G12,20*G12))))","v":0}]
["Total",null,null,null,null,null,null,{"$f":"CEILING(SUM(H11:H12),1)","v":0}]
[]
[{"$f":"'Evaluation Points'!A9","v":"B1"},{"$f":"'Evaluation Points'!B9&\" (Number of EP: \"&'Evaluation Points'!G9&\")\"","v":"Professional Book (Chapter in the Book) – in a World-Class Language (Number of EP: 15/AA)"},null,null,null,"Number of Author Sheets (AA)","Mental Contribution\n( 0 - 1 )","Number of Evaluation Points"]
["Citation",null,null,null,null,null,null,{"$f":"15*F16*G16","v":0}]
[null,null,null,null,null,null,null,{"$f":"15*F17*G17","v":0}]
["Total",null,null,null,null,null,null,{"$f":"CEILING(SUM(H16:H17),1)","v":0}]
[]
[{"$f":"'Evaluation Points'!A10","v":"B2"},{"$f":"'Evaluation Points'!B10&\" (Number of EP: \"&'Evaluation Points'!G10&\")\"","v":"Professional Book (Chapter in the Book) – in other Languages (Number of EP: 8/AA)"},null,null,null,"Number of Author Sheets (AA)","Mental Contribution\n( 0 - 1 )","Number of Evaluation Points"]
["Citation",null,null,null,null,null,null,{"$f":"8*F21*G21","v":0}]
[null,null,null,null,null,null,null,{"$f":"8*F22*G22","v":0}]
["Total",null,null,null,null,null,null,{"$f":"CEILING(SUM(H21:H22),1)","v":0}]
[]
[{"$f":"'Evaluation Points'!A11","v":"D"},{"$f":"'Evaluation Points'!B11&\" (Number of EP: \"&'Evaluation Points'!G11&\")\"","v":"Articles in a Conference Proceedings indexed in the SCOPUS or WoS database (Number of EP: 10)"},null,null,null,null,"Mental Contribution\n( 0 - 1 )","Number of Evaluation Points"]
["Citation",null,null,null,null,null,null,{"$f":"G26*'Evaluation Points'!$G$11","v":0}]
[null,null,null,null,null,null,null,{"$f":"G27*'Evaluation Points'!$G$11","v":0}]
["Total",null,null,null,null,null,null,{"$f":"CEILING(SUM(H26:H27),1)","v":0}]
[]
[{"$f":"'Evaluation Points'!A12","v":"P1"},{"$f":"'Evaluation Points'!B12&\" (Number of EP: \"&'Evaluation Points'!G12&\")\"","v":"\"European\" patent  (EPO), USA patent (USPTO) or Japan patent (Number of EP: 200)"},null,null,null,null,"Mental Contribution\n( 0 - 1 )","Number of Evaluation Points"]
["Title and description of patent",null,null,null,null,null,null,{"$f":"G31*'Evaluation Points'!$G$12","v":0}]
[null,null,null,null,null,null,null,{"$f":"G32*'Evaluation Points'!$G$12","v":0}]
["Total",null,null,null,null,null,null,{"$f":"CEILING(SUM(H31:H32),1)","v":0}]
[]
[{"$f":"'Evaluation Points'!A13","v":"P2"},{"$f":"'Evaluation Points'!B13&\" (Number of EP: \"&'Evaluation Points'!G13&\")\"","v":"Czech or National Patents, which are used on the basis of valid licencing contract agreements (Number of EP: 100)"},null,null,null,null,"Mental Contribution\n( 0 - 1 )","Number of Evaluation Points"]
["Title and description of patent",null,null,null,null,null,null,{"$f":"G36*'Evaluation Points'!$G$13","v":0}]
[null,null,null,null,null,null,null,{"$f":"G37*'Evaluation Points'!$G$13","v":0}]
["Total",null,null,null,null,null,null,{"$f":"CEILING(SUM(H36:H37),1)","v":0}]
[]
[{"$f":"'Evaluation Points'!A14","v":"P3"},{"$f":"'Evaluation Points'!B14&\" (Number of EP: \"&'Evaluation Points'!G14&\")\"","v":"Other patents (Number of EP: 25)"},null,null,null,null,"Mental Contribution\n( 0 - 1 )","Number of Evaluation Points"]
["Title and description of patent",null,null,null,null,null,null,{"$f":"G41*'Evaluation Points'!$G$14","v":0}]
[null,null,null,null,null,null,null,{"$f":"G42*'Evaluation Points'!$G$14","v":0}]
["Total",null,null,null,null,null,null,{"$f":"CEILING(SUM(H41:H42),1)","v":0}]
[]
[{"$f":"'Evaluation Points'!A15","v":"Aplied Results "},{"$f":"'Evaluation Points'!B15&\" (Number of EP: \"&'Evaluation Points'!G15&\")\"","v":"Semioperation, proven technology, prototype, functional sample, software, utility model, industrial design, certified methodology) (Number of EP: 2 - 30)"},null,null,null,"Number of EP","Mental Contribution\n( 0 - 1 )","Number of Evaluation Points"]
["Description of research activity or applied result",null,null,null,null,null,null,{"$f":"G46*F46","v":0}]
[null,null,null,null,null,null,null,{"$f":"G47*F47","v":0}]
["Total",null,null,null,null,null,null,{"$f":"CEILING(SUM(H46:H47),1)","v":0}]
[]
[{"$f":"'Evaluation Points'!A16","v":"Jneimp1"},{"$f":"'Evaluation Points'!B16&\" (Number of EP: \"&'Evaluation Points'!G16&\")\"","v":"Articles in peer-reviewed journals registered in the list of Czech Periodical Review.  (Number of EP: 8)"},null,null,null,null,"Mental Contribution\n( 0 - 1 )","Number of Evaluation Points"]
["Citation",null,null,null,null,null,null,{"$f":"G51*'Evaluation Points'!$G$16","v":0}]
[null,null,null,null,null,null,null,{"$f":"G52*'Evaluation Points'!$G$16","v":0}]
["Total",null,null,null,null,null,null,{"$f":"CEILING(SUM(H51:H52),1)","v":0}]
[]
[{"$f":"'Evaluation Points'!A17","v":"Jneimp2"},{"$f":"'Evaluation Points'!B17&\" (Number of EP: \"&'Evaluation Points'!G17&\")\"","v":"Articles in a scientific or professional journals not indexed in the SCOPUS or WoS database – world-class language (Number of EP: 8)"},null,null,null,null,"Mental Contribution\n( 0 - 1 )","Number of Evaluation Points"]
["Citation",null,null,null,null,null,null,{"$f":"G56*'Evaluation Points'!$G$17","v":0}]
[null,null,null,null,null,null,null,{"$f":"G57*'Evaluation Points'!$G$17","v":0}]
["Total",null,null,null,null,null,null,{"$f":"CEILING(SUM(H56:H57),1)","v":0}]
[]
[{"$f":"'Evaluation Points'!A18","v":"Jneimp3"},{"$f":"'Evaluation Points'!B18&\" (Number of EP: \"&'Evaluation Points'!G18&\")\"","v":"Articles in a scientific or professional journals not indexed in the SCOPUS or WoS database  – other languages (Number of EP: 3)"},null,null,null,null,"Mental Contribution\n( 0 - 1 )","Number of Evaluation Points"]
["Citation",null,null,null,null,null,null,{"$f":"G61*'Evaluation Points'!$G$18","v":0}]
[null,null,null,null,null,null,null,{"$f":"G62*'Evaluation Points'!$G$18","v":0}]
["Total",null,null,null,null,null,null,{"$f":"CEILING(SUM(H61:H62),1)","v":0}]
[]
[{"$f":"'Evaluation Points'!A19","v":"Dnehodn1"},{"$f":"'Evaluation Points'!B19&\" (Number of EP: \"&'Evaluation Points'!G19&\")\"","v":"Articles in a Conference Proceedings not indexed in the SCOPUS and WoS database - world-class language (Number of EP: 5)"},null,null,null,null,"Mental Contribution\n( 0 - 1 )","Number of Evaluation Points"]
["Citation",null,null,null,null,null,null,{"$f":"G66*'Evaluation Points'!$G$19","v":0}]
[null,null,null,null,null,null,null,{"$f":"G67*'Evaluation Points'!$G$19","v":0}]
["Total",null,null,null,null,null,null,{"$f":"CEILING(SUM(H66:H67),1)","v":0}]
[]
[{"$f":"'Evaluation Points'!A20","v":"Dnehodn2"},{"$f":"'Evaluation Points'!B20&\" (Number of EP: \"&'Evaluation Points'!G20&\")\"","v":"Articles in a Conference Proceedings - other languages (Number of EP: 2)"},null,null,null,null,"Mental Contribution\n( 0 - 1 )","Number of Evaluation Points"]
["Citation",null,null,null,null,null,null,{"$f":"G71*'Evaluation Points'!$G$20","v":0}]
[null,null,null,null,null,null,null,{"$f":"G72*'Evaluation Points'!$G$20","v":0}]
["Total",null,null,null,null,null,null,{"$f":"CEILING(SUM(H71:H72),1)","v":0}]
[]
[{"$f":"'Evaluation Points'!A21:G21","v":"Number of Evaluation Points for the Research Activities"},null,null,null,null,null,null,{"$f":"H8+H13+H53+H58+H63+H18+H23+H68+H73+H33+H38+H43+H48+H28","v":0}]

{"sheet":"Grant Activities","index":6,"n_rows":44,"n_cols":8,"rows_kept":44,"cut":false,"hidden":false,"merged":[[7,0,7,5],[15,0,15,4],[13,0,13,6],[14,0,14,6],[12,0,12,6],[22,0,22,6],[23,0,23,6],[25,0,25,6],[26,0,26,4],[33,0,33,5],[31,0,31,4],[43,0,43,6],[34,0,34,5],[41,0,41,4],[35,0,35,5],[36,0,36,4],[39,0,39,6],[40,0,40,6],[38,0,38,6],[0,0,0,1],[0,2,0,7],[2,0,2,7],[29,0,29,5],[30,0,30,5],[18,0,18,5],[5,0,5,4],[3,0,3,5],[4,0,4,5],[20,0,20,4],[28,0,28,5],[8,0,8,5],[19,0,19,5],[10,0,10,4],[9,0,9,5],[17,0,17,5]]}
["Name and Surname:",null,{"$f":"'Title Page'!C6:H6","v":"John Newman"}]
[]
[{"$f":"'Evaluation Points'!A23","v":"Grant Activities"}]
[{"$f":"'Evaluation Points'!A24&\" \n(Number of EP: \"&'Evaluation Points'!G24&\")\"","v":"Head Researcher or Co-researcher of an internal - FAI (IGA) grant, with a Final Report  \n(Number of EP: (-5) - 10)"},null,null,null,null,null,"Evaluation of Project","Number of Evaluation Points"]
["Project Title, Project duration, Head Researcher+ co-researchers",null,null,null,null,null,7,{"$f":"IF(G5<6,12-G5*2,IF(G5=6,-5,0))","v":0}]
["Total",null,null,null,null,null,null,{"$f":"SUM(H5:H5)","v":0}]
[]
[{"$f":"'Evaluation Points'!A25&\" (Number of EP: \"&'Evaluation Points'!G25&\")\"","v":"Researcher responsible for an international project  (Number of EP: 40)"},null,null,null,null,null,"YES/No","Number of Evaluation Points"]
["Project Title, Project duration, Head Researcher",null,null,null,null,null,false,{"$f":"G9*'Evaluation Points'!G25","v":0}]
[null,null,null,null,null,null,false,{"$f":"G10*'Evaluation Points'!G25","v":0}]
["Total",null,null,null,null,null,null,{"$f":"SUM(H9:H10)","v":0}]
[]
[{"$f":"'Evaluation Points'!A26&\" (Number of EP: \"&'Evaluation Points'!G26&\")\"","v":"Active participation in the solution (co-solver) of an international project  (Number of EP: 5 - 20)"},null,null,null,null,null,null,"Number of Evaluation Points"]
["Project Title, Project duration, Head Researcher"]
[]
["Total",null,null,null,null,null,null,{"$f":"SUM(H14:H15)","v":0}]
[]
[{"$f":"'Evaluation Points'!A27&\" (Number of EP: \"&'Evaluation Points'!G27&\")\"","v":"Head researcher (Responsible Project Coordinator) of a GAČR, TAČR or Departmental project  (MPO, MO, MZE, MŠMT) (Number of EP: 30)"},null,null,null,null,null,"YES/No","Number of Evaluation Points"]
["Project Title, Project duration, Head Researcher",null,null,null,null,null,false,{"$f":"G19*'Evaluation Points'!G27","v":0}]
[null,null,null,null,null,null,false,{"$f":"G20*'Evaluation Points'!G27","v":0}]
["Total",null,null,null,null,null,null,{"$f":"SUM(H19:H20)","v":0}]
[]
[{"$f":"'Evaluation Points'!A28&\" (Number of EP: \"&'Evaluation Points'!G28&\")\"","v":"Active participation in the solution (co-resolver) of a GAČR, TAČR or Departmental project  (Number of EP: 5 - 15)"},null,null,null,null,null,null,"Number of Evaluation Points"]
["Project Title, Project duration, Head Researcher"]
[]
[]
["Total",null,null,null,null,null,null,{"$f":"SUM(H24:H26)","v":0}]
[]
[{"$f":"'Evaluation Points'!A29&\" (Number of EP: \"&'Evaluation Points'!G29&\")\"","v":"Researcher responsible for a TBU in Zlín development project  (Number of EP: 5)"},null,null,null,null,null,"YES/No","Number of Evaluation Points"]
["Project Title, Project duration, Head Researcher",null,null,null,null,null,false,{"$f":"G30*'Evaluation Points'!G29","v":0}]
[null,null,null,null,null,null,false,{"$f":"G31*'Evaluation Points'!G29","v":0}]
["Total",null,null,null,null,null,null,{"$f":"SUM(H30:H31)","v":0}]
[]
[{"$f":"'Evaluation Points'!A30&\" (Number of EP: \"&'Evaluation Points'!G30&\")\"","v":"Active participation in the resolution (co-researcher) of a TBU development project  (Number of EP: 3)"},null,null,null,null,null,"YES/No","Number of Evaluation Points"]
["Project Title, Project duration, Head Researcher",null,null,null,null,null,false,{"$f":"G35*'Evaluation Points'!G30","v":0}]
[null,null,null,null,null,null,false,{"$f":"G36*'Evaluation Points'!G30","v":0}]
["Total",null,null,null,null,null,null,{"$f":"SUM(H35:H36)","v":0}]
[]
[{"$f":"'Evaluation Points'!A31&\"  (Number of EP: \"&'Evaluation Points'!G31&\")\"","v":"A share in the resolution of complementary activities in connection with their dissertation thesis, with the use of knowledge acquired in their PhD thesis field  (Number of EP: 5 - 15)"},null,null,null,null,null,null,"Number of Evaluation Points"]
["Project Title, Project duration, Head Researcher",null,null,null,null,null,false]
[]
["Total",null,null,null,null,null,null,{"$f":"SUM(H40:H41)","v":0}]
[]
[{"$f":"'Evaluation Points'!A32:G32","v":"Number of Evaluation Points for the Grant Activities"},null,null,null,null,null,null,{"$f":"H6+H11+H21+H32+H42+H37+H27+H16","v":0}]

{"sheet":"Pedagogical Activities","index":7,"n_rows":58,"n_cols":7,"rows_kept":58,"cut":false,"hidden":false,"merged":[[57,0,57,5],[40,0,40,1],[41,0,41,1],[42,0,42,1],[54,0,54,4],[53,0,53,4],[36,0,36,5],[45,0,45,5],[46,0,46,5],[52,0,52,4],[48,0,48,4],[39,0,39,1],[49,0,49,4],[50,0,50,4],[9,0,9,4],[33,0,33,1],[38,0,38,6],[44,0,44,5],[43,0,43,1],[35,0,35,1],[31,0,31,1],[32,0,32,1],[24,0,24,4],[21,0,21,5],[22,0,22,5],[30,0,30,1],[28,0,28,6],[26,0,26,6],[29,0,29,1],[23,0,23,5],[0,0,0,1],[0,2,0,6],[19,0,19,4],[2,0,2,6],[11,0,11,4],[6,0,6,4],[14,0,14,4],[15,0,15,4],[10,0,10,4],[16,0,16,4],[18,0,18,4],[17,0,17,4],[12,0,12,4],[4,0,4,4],[5,0,5,4],[7,0,7,4]]}
["Name and Surname:",null,{"$f":"'Title Page'!C6:H6","v":"John Newman"}]
[]
[{"$f":"'Evaluation Points'!A34","v":"Pedagogical and Mobility Activities"}]
[]
[{"$f":"'Evaluation Points'!A35&\" (Number of EP: \"&'Evaluation Points'!G35&\")\"","v":"Mobility – Study-stays or work placements at a university abroad whose professional content is on the dissertation topic (with a length of not less than 28 days) (Number of EP: 10/month)"},null,null,null,null,"Number of Months","Number of Evaluation Points"]
["Country, Workplace (University), date of stay",null,null,null,null,null,{"$f":"F6*10","v":0}]
[null,null,null,null,null,null,{"$f":"F7*10","v":0}]
["Total",null,null,null,null,null,{"$f":"SUM(G6:G7)","v":0}]
[]
[{"$f":"'Evaluation Points'!A36&\" (Number of EP: \"&'Evaluation Points'!G36&\")\"","v":"Mobility – Study-stays or work placements at a university abroad whose professional content is on the dissertation topic (with a length of less than 28 days) (Number of EP: 1/week)"},null,null,null,null,"Number of Weeks","Number of Evaluation Points"]
["Country, Workplace (University), date of stay",null,null,null,null,null,{"$f":"F11","v":0}]
[null,null,null,null,null,null,{"$f":"F12","v":0}]
["Total",null,null,null,null,null,{"$f":"SUM(G11:G12)","v":0}]
[]
[{"$f":"'Evaluation Points'!A37&\" (Number of EP: \"&'Evaluation Points'!G37&\")\"","v":"The design of an experiment, experimental workplace, or laboratory workplace. (Number of EP: 5)"},null,null,null,null,"YES/No","Number of Evaluation Points"]
["Description",null,null,null,null,false,{"$f":"F16*'Evaluation Points'!G37","v":0}]
[null,null,null,null,null,false,{"$f":"F17*'Evaluation Points'!G37","v":0}]
[null,null,null,null,null,false,{"$f":"F18*'Evaluation Points'!G37","v":0}]
[null,null,null,null,null,false,{"$f":"F19*'Evaluation Points'!G37","v":0}]
["Total",null,null,null,null,null,{"$f":"SUM(G16:G19)","v":0}]
[]
[{"$f":"'Evaluation Points'!A38&\" (Number of EP: \"&'Evaluation Points'!G38&\")\"","v":"Tutorial Aids (tuition materials, teaching scripts, educational programs, laboratory tasks) (Number of EP: 2 - 5)"},null,null,null,null,null,"Number of Evaluation Points"]
["Description of material"]
[]
["Total",null,null,null,null,null,{"$f":"SUM(G23:G24)","v":0}]
[]
[{"$f":"'Evaluation Points'!A39","v":"Assuring tuition in the tutorial workplace in the field of the dissertation, within the context of unpaid pedagogical working practice (max. 10 evaluation points/academic year)"}]
[]
["Full-time study"]
["Subject Title",null,"Department","Signature of Department Secretary","Tution in english","hour/week","Number of Evaluation Points"]
[null,null,null,null,false,0,{"$f":"IF(E31,F31*2,F31)","v":0}]
[null,null,null,null,false,null,{"$f":"IF(E32,F32*2,F32)","v":0}]
[null,null,null,null,false,null,0]
[null,null,null,null,false,null,0]
[null,null,null,null,false,null,0]
[null,null,null,null,false,null,0]
["Full-Time Study Total",null,null,null,null,null,{"$f":"SUM(G31:G36)","v":0}]
[]
["Part-time study"]
["Subject Title",null,"Department","Signature of Department Secretary","Tution in english","hour/semester","Number of Evaluation Points"]
[null,null,null,null,false,0,{"$f":"IF(E41,F41*2/14,F41/14)","v":0}]
[null,null,null,null,false,null,{"$f":"IF(E42,F42*2/14,F42/14)","v":0}]
[null,null,null,null,false,null,0]
[null,null,null,null,false,null,0]
["Part-Time Study Total",null,null,null,null,null,{"$f":"CEILING(SUM(G41:G44),1)","v":0}]
["Assuring Tuition - Total",null,null,null,null,null,{"$f":"CEILING(G37+G45,1)","v":0}]
["Total number of eligible evaluation points ",null,null,null,null,null,{"$f":"IF(G46>10,10,G46)","v":0}]
[]
[{"$f":"'Evaluation Points'!A40&\" (Number of EP: \"&'Evaluation Points'!G40&\")\"","v":"Submission of their Dissertation, in the Czech (Slovak) language (Number of EP: 30)"},null,null,null,null,"YES/No","Number of Evaluation Points"]
["Titli of Thesis",null,null,null,null,false,{"$f":"F50*'Evaluation Points'!G40","v":0}]
["Total",null,null,null,null,null,{"$f":"SUM(G50:G50)","v":0}]
[]
[{"$f":"'Evaluation Points'!A41&\" (Number of EP: \"&'Evaluation Points'!G41&\")\"","v":"Submission of their Dissertation, in the English language (Number of EP: 50)"},null,null,null,null,"YES/No","Number of Evaluation Points"]
["Title of Thesis",null,null,null,null,false,{"$f":"F54*'Evaluation Points'!G41","v":0}]
["Total",null,null,null,null,null,{"$f":"SUM(G54:G54)","v":0}]
[]
[]
[{"$f":"'Evaluation Points'!A42","v":"Number of Evaluation Points for the Pedagogical and Mobility Activities"},null,null,null,null,null,{"$f":"G8+G13+G20+G47+G51+G55+G25","v":0}]

{"sheet":"List1","index":8,"n_rows":55,"n_cols":8,"rows_kept":55,"cut":false,"hidden":false,"merged":[]}
["Advanced Concepts of Classification and Data Analysis",1,"Full-Time","January",2007,"2014/2015","A","No"]
["Advanced Signal Processing",2,"Part-Time","February",2008,"2015/2016","B","Yes"]
["Advanced Technologies for Protection Information and Communication Systems",3,null,"March",2009,"2016/2017","C"]
["Advanced Theory of Security",4,null,"April",2010,"2017/2018","D"]
["Automatization Technical Resources",5,null,"May",2011,"2018/2019","E"]
["Bioinspired Optimisation Methods",6,null,"June",2012,"2019/2020","F"]
["Computer Technology in Automatic Control",7,null,"July",2013,"2020/2021"]
["Computers in Automatic Control",8,null,"August",2014,"2021/2022"]
["Control Theory",9,null,"September",2015,"2022/2023"]
["Crisis Management and Population Protection",null,null,"October",2016,"2023/2024"]
["Critical Infrastructure and Soft Targets Protection",null,null,"November",2017,"2024/2025"]
["Design and Implementation of Electrical Circuits",null,null,"December",2018,"2025/2026"]
["Diagnostics and Testing",null,null,null,2019,"2026/2027"]
["Discrete Event Simulation",null,null,null,2020]
["Electromagnetic Compatibility of Security Devices",null,null,null,2021]
["Electronic Circuits and System Design",null,null,null,2022]
["Electronic Circuits in Security Technologies",null,null,null,2023]
["English Language",null,null,null,2024]
["General Systems Theory",null,null,null,2025]
["Generalized System Theory",null,null,null,2026]
["Hardware System Modelling, Software co-Design",null,null,null,2027]
["Hardware, Interfaces and Programming Environment",null,null,null,2028]
["Mathematics",null,null,null,2029]
["Measurement Science and Technology",null,null,null,2030]
["Measurements"]
["Mechatronic and Robotic Systems"]
["Modelling and Simulation of Continuous Systems"]
["Modelling of Processes in Production Technologies"]
["Modern Database Techniques"]
["Modern Network Technologies and Operating Systems"]
["Modern Theory of Informatics"]
["Multimedial Data Processing"]
["Parallel Processes and Multi-Platform Programming"]
["Science of Cyber Security"]
["Security Management on Organization"]
["Security Prognostics"]
["Security System Technology"]
["Security Technologies of Information Systems"]
["Selected Chapters from Artificial Intelligence"]
["Selected Chapters from Forensic Science"]
["Selected Optimisation Methods"]
["Selected Software Engineering Methods"]
["Selected Topics from Artificial Intelligence"]
["Selected Topics from Automatic Control Theory"]
["Selected Topics of Control Theory"]
["Software Engineering Methods"]
["System Identification"]
["System Modelling and Simulation"]
["Systems Engineering"]
["Systems Identification"]
["Technical Tools of Automatization"]
["Technology of Commercial Security"]
["Theory of Algorithms"]
["Theory of Digital Communication"]
["Theory of Information"]